bitfinex-derivatives/quotes_SOLF0:USTF0_20250323
["timestamp","ask_amount","ask_price","bid_price","bid_amount"]
[1742765363427,7.664,130.5,130.49,0.0536977]
[1742765408863,7.6648,130.48,130.47,26.72]
[1742765420375,7.6643,130.49,130.47,26.72]
[1742765421376,7.6646,130.48,130.47,26.72]
[1742765423568,7.6643,130.49,130.47,26.72]
[1742765430487,60.07004873,130.51,130.47,44.33341078]
[1742765430883,60.07004873,130.51,130.48,7.6645]
[1742765432388,50.12123795,130.51,130.48,17.61331078]
[1742765433084,7.71974589,130.51,130.48,17.61331078]
[1742765437596,17.66855667,130.51,130.48,17.61331078]
[1742765441196,7.6634,130.5,130.48,9.94881078]
[1742765443998,17.61221078,130.5,130.47,46.41231078]
[1742765448501,7.6634,130.5,130.47,46.41231078]
[1742765455609,7.6634,130.5,130.48,7.6646]
[1742765455805,17.66835667,130.51,130.48,7.6646]
[1742765456005,17.66835667,130.51,130.47,38.74751078]
[1742765456205,7.71954589,130.51,130.47,38.74751078]
[1742765456509,7.71954589,130.51,130.47,46.41221078]
[1742765456709,7.6636,130.5,130.47,46.41221078]
[1742765459211,7.6636,130.5,130.48,7.6645]
[1742765460113,0.05644589,130.51,130.49,7.6639]
[1742765460314,0.05644589,130.51,130.5,26.7]
[1742765460615,0.05644589,130.51,130.5,34.3634]
[1742765475117,0.05644589,130.51,130.5,44.31221078]
[1742765485220,42.40149206,130.57,130.55,7.6603]
[1742765485425,42.40149206,130.57,130.56,26.7]
[1742765485930,42.40149206,130.57,130.56,34.3599]
[1742765488027,0.04906863,130.58,130.56,44.30871078]
[1742765488229,0.04906863,130.58,130.57,7.6593]
[1742765488432,0.04906863,130.58,130.56,36.64881078]
[1742765489328,0.04906863,130.58,130.56,44.30841078]
[1742765493443,0.04906863,130.58,130.56,34.3596]
[1742765494043,0.04906863,130.58,130.57,7.6593]
[1742765495341,0.04906863,130.58,130.57,17.60811078]
[1742765495740,12.02061078,130.62,130.58,7.6585]
[1742765496039,19.67731078,130.62,130.59,26.7]
[1742765496840,0.05354653,130.62,130.59,34.41635592]
[1742765497035,0.05354653,130.62,130.59,44.3651667]
[1742765497235,0.05354653,130.62,130.6,7.6574]
[1742765497742,0.05354653,130.62,130.6,17.60621078]
[1742765498639,0.05354653,130.62,130.61,9.94881078]
[1742765514653,0.05354653,130.62,130.61,17.60571078]
[1742765515152,0.05354653,130.62,130.61,9.94881078]
[1742765524359,7.70994653,130.62,130.61,9.94881078]
[1742765529460,7.70994653,130.62,130.6,9.94881078]
[1742765532856,7.6569,130.61,130.6,9.94881078]
[1742765533059,7.6569,130.61,130.6,36.62881078]
[1742765541863,7.71014653,130.62,130.6,36.62881078]
[1742765542065,7.71014653,130.62,130.61,9.94881078]
[1742765552682,0.05354653,130.62,130.61,9.94881078]
[1742765552978,42.40149206,130.66,130.61,9.94881078]
[1742765553183,50.05579206,130.66,130.64,9.94881078]
[1742765553384,50.05579206,130.66,130.65,26.7]
[1742765554285,42.40149206,130.66,130.65,26.7]
[1742765555485,50.05549206,130.66,130.65,26.7]
[1742765556686,7.654,130.66,130.65,26.7]
[1742765556880,7.6546,130.65,130.64,36.68226744]
[1742765564892,7.6543,130.66,130.64,36.68226744]
[1742765565893,7.70465742,130.67,130.64,36.68226744]
[1742765568785,7.70465742,130.67,130.65,9.94881078]
[1742765570195,0.05095742,130.67,130.65,9.94881078]
[1742765570897,7.70445742,130.67,130.65,9.94881078]
[1742765572700,0.05095742,130.67,130.65,9.94881078]
[1742765573102,0.05095742,130.67,130.65,273.96881078]
[1742765578507,0.05095742,130.67,130.66,9.94881078]
[1742765579506,7.70435742,130.67,130.65,273.96881078]
[1742765580295,0.05095742,130.67,130.65,273.96881078]
[1742765581204,0.05095742,130.67,130.66,9.94881078]
[1742765581701,0.05095742,130.67,130.66,17.60281078]
[1742765589813,0.05095742,130.67,130.66,9.94881078]
[1742765598524,7.652,130.7,130.66,17.60241078]
[1742765598720,7.652,130.7,130.69,9.94881078]
[1742765602418,0.0579974,130.71,130.69,9.94881078]
[1742765602726,0.0579974,130.71,130.7,36.64881078]
[1742765606529,10.60037301,130.74,130.7,36.64881078]
[1742765606729,10.60037301,130.74,130.73,9.94881078]
[1742765606930,10.60037301,130.74,130.73,36.64881078]
[1742765608827,0.05505259,130.75,130.73,36.64881078]
[1742765609031,0.05505259,130.75,130.74,9.94881078]
[1742765637648,0.05505259,130.75,130.74,17.59811078]
[1742765639752,7.6473,130.78,130.74,17.59811078]
[1742765639952,7.6473,130.78,130.77,9.94881078]
[1742765640155,7.6473,130.78,130.77,36.58881078]
[1742765645968,7.6473,130.78,130.77,26.64]
[1742765658072,17.59611078,130.78,130.77,26.64]
[1742765658275,7.6476,130.77,130.76,0.05317999]
[1742765659470,17.59641078,130.77,130.76,0.05317999]
[1742765660874,17.59641078,130.77,130.76,7.999e-05]
[1742765663973,125.0896754,130.77,130.76,7.999e-05]
[1742765665474,72.12089362,130.77,130.76,7.999e-05]
[1742765668377,82.72714334,130.77,130.76,7.999e-05]
[1742765670579,156.92387775,130.77,130.76,7.999e-05]
[1742765673078,72.12089362,130.77,130.76,7.999e-05]
[1742765674780,82.71040744,130.77,130.76,7.999e-05]
[1742765676985,50.87620509,130.77,130.76,7.999e-05]
[1742765679287,40.28669127,130.77,130.76,7.999e-05]
[1742765681392,50.87620509,130.77,130.76,7.999e-05]
[1742765686697,156.92387775,130.77,130.76,7.999e-05]
[1742765689303,125.0896754,130.77,130.76,7.999e-05]
[1742765689900,7.6511,130.71,130.7,28.7401]
[1742765690291,7.6511,130.71,130.7,2.0801]
[1742765700807,7.6511,130.71,130.7,12.02891078]
[1742765704313,7.6511,130.71,130.7,2.0801]
[1742765714520,0.05438113,130.72,130.7,12.02891078]
[1742765714716,0.05438113,130.72,130.71,9.94881078]
[1742765714915,50.07455733,130.74,130.71,17.59991078]
[1742765715218,42.42495733,130.74,130.73,9.94881078]
[1742765715419,35.92355733,130.74,130.73,9.94881078]
[1742765718019,7.6489,130.75,130.73,9.94881078]
[1742765719519,7.6493,130.74,130.73,9.94881078]
[1742765721215,7.649,130.75,130.73,9.94881078]
[1742765725716,7.649,130.75,130.72,36.66458061]
[1742765725917,7.649,130.75,130.72,44.31488061]
[1742765726117,376.59731078,130.76,130.72,44.31488061]
[1742765726420,366.6485,130.76,130.73,9.94881078]
[1742765727825,366.6485,130.76,130.74,9.94881078]
[1742765728120,359.0,130.76,130.75,26.64]
[1742765728614,359.0,130.76,130.75,36.58881078]
[1742765730428,7.6479,130.77,130.75,36.58881078]
[1742765730627,7.6479,130.77,130.75,26.64]
[1742765730821,7.6479,130.77,130.75,26.69682573]
[1742765731822,7.6482,130.76,130.75,26.69682573]
[1742765742332,17.59701078,130.76,130.75,26.69682573]
[1742765746030,7.6482,130.76,130.75,26.69682573]
[1742765746231,17.59661078,130.77,130.75,0.05682573]
[1742765747330,19.62191078,130.78,130.75,0.05682573]
[1742765747529,17.59591078,130.78,130.75,0.05682573]
[1742765747725,17.59591078,130.78,130.75,7.70542573]
[1742765749034,7.6476,130.77,130.75,7.70542573]
[1742765750138,7.6476,130.77,130.75,0.05682573]
[1742765757638,17.59611078,130.78,130.75,0.05682573]
[1742765757839,7.6473,130.78,130.75,0.05682573]
[1742765758841,7.6473,130.78,130.75,7.70552573]
[1742765761045,7.6473,130.78,130.75,17.65433651]
[1742765761342,11.6813,130.79,130.75,17.65433651]
[1742765761545,11.6813,130.79,130.76,7.6481]
[1742765764046,11.6813,130.79,130.75,17.65403651]
[1742765764441,7.6471,130.78,130.75,17.65403651]
[1742765766245,7.6476,130.77,130.75,10.00563651]
[1742765768538,7.6476,130.77,130.75,0.05682573]
[1742765778461,7.6482,130.76,130.75,0.05682573]
[1742765778655,13.98341078,130.79,130.75,0.05682573]
[1742765779659,7.6478,130.77,130.75,0.05682573]
[1742765785666,7.6478,130.77,130.75,10.00563651]
[1742765787664,7.6478,130.77,130.75,0.05682573]
[1742765788158,7.6478,130.77,130.76,26.64]
[1742765797877,7.6478,130.77,130.75,26.69682573]
[1742765803088,7.6482,130.76,130.75,26.69682573]
[1742765805987,7.6479,130.77,130.75,26.69682573]
[1742765810089,7.6482,130.76,130.75,26.69682573]
[1742765810286,7.6482,130.76,130.75,0.05682573]
[1742765810788,17.59701078,130.76,130.75,0.05682573]
[1742765817190,40.22559344,130.76,130.75,0.05682573]
[1742765818591,30.27678266,130.76,130.75,0.05682573]
[1742765819192,40.22559344,130.76,130.75,0.05682573]
[1742765820295,17.59701078,130.76,130.75,0.05682573]
[1742765824796,44.23701078,130.76,130.75,2.573e-05]
[1742765827399,109.27302346,130.76,130.75,2.573e-05]
[1742765829398,66.81603607,130.76,130.75,2.573e-05]
[1742765832902,44.23701078,130.76,130.75,2.573e-05]
[1742765834798,17.59701078,130.76,130.75,2.573e-05]
[1742765845312,40.17466096,130.76,130.75,2.573e-05]
[1742765848315,50.81293035,130.76,130.75,2.573e-05]
[1742765851811,82.63164835,130.76,130.75,2.573e-05]
[1742765866326,40.17466096,130.76,130.75,2.573e-05]
[1742765868225,17.59701078,130.76,130.75,2.573e-05]
[1742765876526,7.6482,130.76,130.75,2.573e-05]
[1742765883028,17.59701078,130.76,130.75,2.573e-05]
[1742765917249,7.6482,130.76,130.75,2.573e-05]
[1742765920044,17.59701078,130.76,130.75,2.573e-05]
[1742765923456,7.6482,130.76,130.75,2.573e-05]
[1742765930776,9.99858843,130.77,130.75,2.573e-05]
[1742765930777,17.64648843,130.77,130.75,2.573e-05]
[1742765931674,0.04977765,130.77,130.76,36.56881078]
[1742765932280,116.62170213,130.79,130.76,44.20881078]
[1742765932579,116.62170213,130.79,130.78,9.94881078]
[1742765932883,142.91659329,130.8,130.79,7.6464]
[1742765933081,142.91659329,130.8,130.79,44.21521078]
[1742765934379,0.02075919,130.81,130.79,44.21521078]
[1742765934678,0.02075919,130.81,130.8,9.94881078]
[1742765938882,0.02075919,130.81,130.79,36.56881078]
[1742765940087,7.66605919,130.81,130.79,36.56881078]
[1742765941383,7.6458,130.8,130.79,26.62]
[1742765941583,9.96956997,130.81,130.78,0.05394845]
[1742765941789,9.94881078,130.8,130.78,0.05394845]
[1742765941988,7.6464,130.79,130.78,26.67394845]
[1742765951190,7.6463,130.8,130.78,26.67394845]
[1742765951788,7.6463,130.8,130.78,34.32084845]
[1742765952394,7.66625919,130.81,130.78,34.32084845]
[1742765952795,0.02075919,130.81,130.78,26.67394845]
[1742765953293,7.6458,130.8,130.78,26.67394845]
[1742765960698,7.6464,130.79,130.78,26.67394845]
[1742765961101,7.6464,130.79,130.78,0.05394845]
[1742765961302,7.6464,130.79,130.78,26.67394845]
[1742765963802,17.59521078,130.79,130.78,26.67394845]
[1742765965202,7.6464,130.79,130.78,26.67394845]
[1742765989921,7.6464,130.79,130.78,36.62275923]
[1742765990120,7.6464,130.79,130.78,26.67394845]
[1742765995930,7.6463,130.8,130.78,26.67394845]
[1742765999731,17.61496997,130.81,130.78,34.32054845]
[1742766000032,0.02075919,130.81,130.78,26.67394845]
[1742766000232,0.02075919,130.81,130.8,7.6458]
[1742766000433,0.02075919,130.81,130.8,17.59461078]
[1742766000632,10.6569878,130.84,130.8,9.94881078]
[1742766000935,20.60579858,130.84,130.81,290.36]
[1742766001130,9.94881078,130.83,130.82,26.6]
[1742766001330,9.94881078,130.83,130.81,263.76]
[1742766001537,17.59351078,130.82,130.81,263.76]
[1742766001734,17.59351078,130.82,130.81,263.81207719]
[1742766002037,9.94881078,130.82,130.78,26.6]
[1742766002336,9.94881078,130.8,130.78,26.6]
[1742766002530,9.94881078,130.81,130.78,26.6]
[1742766002738,7.646,130.8,130.78,26.6]
[1742766003336,7.69689317,130.8,130.78,26.65229992]
[1742766004039,17.64570395,130.8,130.78,26.65229992]
[1742766004237,7.6464,130.79,130.78,26.65229992]
[1742766004931,7.69699317,130.8,130.78,26.65229992]
[1742766005834,7.6464,130.79,130.78,26.65229992]
[1742766006534,17.59521078,130.79,130.78,0.05229992]
[1742766013434,7.6464,130.79,130.78,0.05229992]
[1742766023849,17.59521078,130.79,130.78,0.05229992]
[1742766024048,19.56291078,130.79,130.78,0.05229992]
[1742766029055,7.6487,130.75,130.74,290.38]
[1742766034564,7.69698703,130.76,130.74,290.38]
[1742766037859,0.04848703,130.76,130.74,290.38]
[1742766038066,7.6487,130.75,130.74,290.38]
[1742766047772,7.6487,130.75,130.74,263.78]
[1742766050873,7.69698703,130.76,130.74,263.78]
[1742766053275,7.6487,130.75,130.74,263.78]
[1742766056075,7.69698703,130.76,130.73,44.27626165]
[1742766056674,7.69698703,130.76,130.74,7.6493]
[1742766058174,7.69698703,130.76,130.73,44.27636165]
[1742766058773,7.6488,130.75,130.73,44.27636165]
[1742766059075,7.6488,130.75,130.73,36.62666165]
[1742766059476,7.6493,130.74,130.73,36.62666165]
[1742766060078,7.6493,130.74,130.73,26.67785087]
[1742766062978,7.649,130.75,130.73,36.62666165]
[1742766066986,0.04848703,130.76,130.74,9.94881078]
[1742766067387,0.04848703,130.76,130.74,17.59791078]
[1742766071193,7.69668703,130.76,130.74,17.59791078]
[1742766073299,42.51017456,130.82,130.75,9.90589865]
[1742766073595,42.51017456,130.82,130.8,9.90589865]
[1742766073790,42.51017456,130.82,130.81,44.17109865]
[1742766075190,0.05589008,130.83,130.82,7.6447]
[1742766078098,0.05589008,130.83,130.81,34.265]
[1742766078290,0.05589008,130.83,130.81,26.62]
[1742766078700,9.89477675,130.82,130.81,26.62]
[1742766078898,9.89477675,130.82,130.8,0.05725837]
[1742766079198,9.89477675,130.81,130.8,0.05725837]
[1742766079395,17.53997675,130.81,130.8,0.05725837]
[1742766079896,9.89477675,130.81,130.77,26.6]
[1742766080095,9.89477675,130.78,130.75,290.46]
[1742766080394,9.89477675,130.79,130.75,290.46]
[1742766080795,7.6473,130.78,130.75,298.1086]
[1742766080995,7.69602428,130.78,130.76,0.05016079]
[1742766084400,7.6476,130.77,130.76,0.05016079]
[1742766088802,7.6476,130.77,130.76,9.94493754]
[1742766088999,7.69592428,130.78,130.76,9.94493754]
[1742766089204,7.69592428,130.78,130.76,0.05016079]
[1742766091209,7.69592428,130.78,130.76,9.94493754]
[1742766092009,7.69592428,130.78,130.76,0.05016079]
[1742766092507,0.04872428,130.78,130.76,0.05016079]
[1742766093109,0.04872428,130.78,130.76,9.94493754]
[1742766093308,368.89477675,130.83,130.77,9.89477675]
[1742766093507,368.89477675,130.83,130.76,0.05016079]
[1742766093508,9.89477675,130.83,130.79,9.89477675]
[1742766093713,7.6443,130.83,130.79,17.54067675]
[1742766094010,17.53907675,130.83,130.79,17.54067675]
[1742766094509,0.05177454,130.82,130.8,0.05666586]
[1742766094708,17.59125129,130.82,130.81,26.72]
[1742766097913,7.6452,130.81,130.8,0.05666586]
[1742766098111,17.53997675,130.81,130.8,0.05666586]
[1742766103415,7.6452,130.81,130.8,0.05666586]
[1742766109918,9.7824,130.81,130.8,0.05666586]
[1742766126136,19.67717675,130.81,130.8,0.05666586]
[1742766132333,2.1372,130.81,130.8,0.05666586]
[1742766132528,7.69677454,130.82,130.8,0.05666586]
[1742766133639,17.53997675,130.81,130.8,0.05666586]
[1742766170059,7.6452,130.81,130.8,0.05666586]
[1742766174676,17.53997675,130.81,130.8,0.05666586]
[1742766195990,0.05177454,130.82,130.8,0.05666586]
[1742766196389,0.05177454,130.82,130.81,26.6]
[1742766196583,0.05177454,130.82,130.81,36.49477675]
[1742766196984,0.05177454,130.82,130.81,26.6]
[1742766197393,7.69647454,130.82,130.81,26.6]
[1742766200592,0.05177454,130.82,130.81,26.6]
[1742766206898,0.05177454,130.82,130.81,34.2452]
[1742766214603,0.05177454,130.82,130.81,26.6]
[1742766215904,0.05177454,130.82,130.81,34.2452]
[1742766216407,0.05177454,130.82,130.81,26.6]
[1742766216408,17.59125129,130.82,130.81,26.6]
[1742766216604,7.69647454,130.82,130.81,26.6]
[1742766217102,0.05177454,130.82,130.81,26.6]
[1742766218407,7.69647454,130.82,130.81,26.6]
[1742766222212,7.6452,130.81,130.8,0.05666586]
[1742766227813,7.69677454,130.82,130.8,9.95144261]
[1742766228610,0.05177454,130.82,130.8,9.95144261]
[1742766229010,0.05177454,130.82,130.81,26.6]
[1742766229405,7.69667454,130.82,130.81,26.6]
[1742766232511,7.6452,130.81,130.8,0.05666586]
[1742766233317,17.53997675,130.81,130.8,0.05666586]
[1742766233817,7.6458,130.8,130.79,263.74]
[1742766234014,17.54057675,130.8,130.79,263.74]
[1742766239824,7.6458,130.8,130.79,263.74]
[1742766240320,0.05177454,130.82,130.79,263.74]
[1742766240522,0.05177454,130.82,130.8,26.6]
[1742766240725,7.69677454,130.82,130.8,26.6]
[1742766241019,0.05177454,130.82,130.8,36.49477675]
[1742766241225,0.05177454,130.82,130.81,7.6452]
[1742766242123,0.05177454,130.82,130.8,44.14037675]
[1742766242311,0.05177454,130.82,130.8,34.2456]
[1742766243024,0.05177454,130.82,130.8,26.6]
[1742766243533,7.69647454,130.82,130.8,26.6]
[1742766245931,7.6452,130.81,130.8,26.6]
[1742766246729,7.69667454,130.82,130.8,36.49477675]
[1742766247034,7.69667454,130.82,130.8,26.6]
[1742766247334,7.6452,130.81,130.8,26.6]
[1742766250230,7.69657454,130.82,130.8,26.6]
[1742766251127,0.05177454,130.82,130.8,26.6]
[1742766253327,9.94655129,130.82,130.8,26.6]
[1742766253532,9.89477675,130.81,130.79,263.74]
[1742766254035,9.89477675,130.8,130.79,263.74]
[1742766254937,17.54057675,130.8,130.79,263.74]
[1742766261538,7.6464,130.79,130.78,0.0539047]
[1742766261746,17.54117675,130.79,130.78,0.0539047]
[1742766262545,7.6464,130.79,130.78,0.0539047]
[1742766284957,17.54117675,130.79,130.78,0.0539047]
[1742766312476,17.54117675,130.79,130.78,4.7e-06]
[1742766312677,7.6493,130.74,130.73,290.42]
[1742766312969,7.6493,130.74,130.73,263.76]
[1742766320082,7.70026988,130.75,130.73,263.76]
[1742766320677,7.6493,130.74,130.73,263.76]
[1742766320881,9.89477675,130.74,130.72,0.05384189]
[1742766321286,7.6499,130.73,130.72,0.05384189]
[1742766357818,0.05116988,130.75,130.72,7.70394189]
[1742766358019,0.05116988,130.75,130.73,9.89477675]
[1742766358723,0.05116988,130.75,130.73,17.54417675]
[1742766360224,0.05116988,130.75,130.74,7.6493]
[1742766373836,0.05116988,130.75,130.74,17.54407675]
[1742766384437,9.89477675,130.79,130.74,273.71477675]
[1742766384642,9.89477675,130.79,130.75,36.51477675]
[1742766385047,17.54087675,130.8,130.77,7.6473]
[1742766385344,17.54087675,130.8,130.78,26.64]
[1742766385642,9.94926987,130.8,130.78,34.34489912]
[1742766388046,0.05449312,130.8,130.78,34.34489912]
[1742766390847,7.70039312,130.8,130.78,26.69789912]
[1742766391042,17.59516987,130.8,130.78,26.69789912]
[1742766391648,9.94926987,130.8,130.78,34.34479912]
[1742766394544,0.05449312,130.8,130.78,36.59267587]
[1742766395044,0.05449312,130.8,130.79,17.54117675]
[1742766405154,0.05449312,130.8,130.78,0.05789912]
[1742766405357,9.94926987,130.8,130.78,0.05789912]
[1742766405756,7.6464,130.79,130.78,0.05789912]
[1742766405961,9.94926987,130.8,130.76,36.55477675]
[1742766407255,9.94926987,130.8,130.77,0.05096394]
[1742766407460,7.6474,130.78,130.77,0.05096394]
[1742766414462,7.6467,130.79,130.77,0.05096394]
[1742766441300,0.05449312,130.8,130.77,9.94574069]
[1742766442203,0.05449312,130.8,130.78,7.6466]
[1742766442702,7.70039312,130.8,130.78,7.6466]
[1742766443202,7.70039312,130.8,130.77,17.59294069]
[1742766443702,0.05449312,130.8,130.78,7.6469]
[1742766444204,0.05449312,130.8,130.79,26.62]
[1742766454001,7.70029312,130.8,130.79,26.62]
[1742766470721,0.05449312,130.8,130.79,26.62]
[1742766478320,0.05449312,130.8,130.79,34.2664]
[1742766481823,0.05449312,130.8,130.79,26.62]
[1742766482929,0.05449312,130.8,130.79,34.2664]
[1742766489833,0.05449312,130.8,130.79,26.62]
[1742766491334,0.05449312,130.8,130.79,36.51477675]
[1742766505344,0.05449312,130.8,130.79,44.16117675]
[1742766511655,0.05449312,130.8,130.79,307.86117675]
[1742766526066,11.8656,130.85,130.82,7.6446]
[1742766526369,11.8656,130.85,130.83,36.49477675]
[1742766526570,11.8656,130.85,130.83,26.6]
[1742766527270,11.92363833,130.85,130.83,26.65438929]
[1742766528367,2.13393833,130.85,130.83,44.19326604]
[1742766533578,2.13393833,130.85,130.83,34.29848929]
[1742766536279,0.05803833,130.85,130.83,34.29848929]
[1742766537580,0.05803833,130.85,130.84,7.6435]
[1742766539180,0.05803833,130.85,130.84,17.53827675]
[1742766545282,2.1338,130.9,130.87,7.6413]
[1742766545485,2.1338,130.9,130.88,26.6]
[1742766546486,2.19144759,130.9,130.88,26.65304015]
[1742766546683,2.19144759,130.9,130.88,34.29384015]
[1742766547589,0.05764759,130.9,130.88,34.29384015]
[1742766550388,0.05764759,130.9,130.89,7.6406]
[1742766552192,0.05764759,130.9,130.89,9.89477675]
[1742766552393,0.05764759,130.9,130.88,44.1888169]
[1742766553694,0.05764759,130.9,130.89,7.6406]
[1742766557598,0.05764759,130.9,130.89,17.53537675]
[1742766565803,0.05764759,130.9,130.89,7.6406]
[1742766566002,0.05764759,130.9,130.89,44.11537675]
[1742766569099,0.05764759,130.9,130.89,36.47477675]
[1742766569902,0.05764759,130.9,130.89,44.11537675]
[1742766570197,0.05764759,130.9,130.89,34.2206]
[1742766583615,0.05764759,130.9,130.89,297.7206]
[1742766588010,0.05764759,130.9,130.89,307.61537675]
[1742766589218,4.759e-05,130.9,130.89,307.61537675]
[1742766597125,4.759e-05,130.9,130.89,290.08]
[1742766597425,4.759e-05,130.9,130.89,299.97477675]
[1742766601622,4.759e-05,130.9,130.89,307.61537675]
[1742766601828,4.0918,130.94,130.89,307.61537675]
[1742766602019,4.0918,130.94,130.9,9.89477675]
[1742766602226,7.6388,130.92,130.9,9.89477675]
[1742766602730,7.6395,130.91,130.89,273.39477675]
[1742766602933,7.6395,130.91,130.9,26.6338131]
[1742766604434,7.6391,130.92,130.9,26.6338131]
[1742766605935,17.53327675,130.93,130.9,26.6338131]
[1742766606635,7.6385,130.93,130.9,26.6338131]
[1742766607238,13.98657675,130.94,130.9,44.16838985]
[1742766607239,21.62437675,130.94,130.9,44.16838985]
[1742766607434,4.0918,130.94,130.9,36.52858985]
[1742766608141,4.0918,130.94,130.91,7.6391]
[1742766609234,4.0918,130.94,130.92,7.6388]
[1742766609934,11.7295,130.94,130.91,7.6389]
[1742766624950,11.7295,130.94,130.92,7.6388]
[1742766625153,11.7295,130.94,130.9,36.52858985]
[1742766625849,11.7295,130.94,130.91,7.639]
[1742766635855,11.7295,130.94,130.92,7.6387]
[1742766638361,11.7295,130.94,130.9,300.00858985]
[1742766638362,2.1297,130.94,130.93,7.6382]
[1742766638562,368.89477675,130.97,130.93,26.58]
[1742766638951,7.6367,130.96,130.94,7.68834657]
[1742766639852,376.53107675,130.97,130.94,7.68834657]
[1742766640267,7.6363,130.97,130.95,7.6371]
[1742766640667,7.6363,130.97,130.94,7.68814657]
[1742766641773,7.6366,130.96,130.94,0.05074657]
[1742766644372,7.6371,130.95,130.94,0.05074657]
[1742766656479,7.6371,130.95,130.94,26.61074657]
[1742766670682,17.53187675,130.95,130.94,26.61074657]
[1742766671583,7.6371,130.95,130.94,26.61074657]
[1742766673388,17.53157675,130.96,130.94,26.61074657]
[1742766673887,7.6368,130.96,130.94,26.61074657]
[1742766676690,7.6371,130.95,130.94,26.61074657]
[1742766680888,7.6382,130.93,130.92,263.42]
[1742766682390,17.53297675,130.93,130.92,263.42]
[1742766682689,7.6388,130.92,130.91,26.61830795]
[1742766684397,7.6388,130.92,130.91,0.05830795]
[1742766688102,7.6385,130.93,130.91,0.05830795]
[1742766690405,7.6388,130.92,130.91,0.05830795]
[1742766690605,12.03786884,130.94,130.91,0.05830795]
[1742766691506,7.6387,130.93,130.91,0.05830795]
[1742766695309,2.14309209,130.94,130.91,17.5921847]
[1742766695908,2.14309209,130.94,130.92,9.89477675]
[1742766696206,0.05589209,130.94,130.93,26.56]
[1742766697206,0.05589209,130.94,130.93,36.45477675]
[1742766697399,0.05589209,130.94,130.93,44.09297675]
[1742766698607,0.05589209,130.94,130.93,34.1982]
[1742766698806,0.05589209,130.94,130.93,26.56]
[1742766699203,7.69349209,130.94,130.93,26.56]
[1742766702412,0.05589209,130.94,130.93,26.56]
[1742766702609,0.05589209,130.94,130.93,36.45477675]
[1742766703208,0.05589209,130.94,130.93,44.09297675]
[1742766715125,9.209e-05,130.94,130.93,44.09297675]
[1742766716325,376.52867675,131.01,130.93,44.09477675]
[1742766716525,7.6339,131.01,130.98,9.89477675]
[1742766716728,14.00207675,131.02,130.99,26.58]
[1742766716937,21.63547675,131.02,130.99,26.58]
[1742766717435,7.6336,131.01,130.99,26.63054143]
[1742766717733,14.00207675,131.02,130.99,26.63054143]
[1742766718130,7.6338,131.01,130.99,26.63054143]
[1742766720932,7.6341,131.0,130.99,26.63054143]
[1742766721838,7.6341,131.0,130.99,36.52531818]
[1742766722136,7.6339,131.01,130.99,36.52531818]
[1742766722333,2.0143,131.02,130.99,36.52531818]
[1742766722835,9.6476,131.02,131.0,9.89477675]
[1742766723431,2.0143,131.02,131.0,9.89477675]
[1742766724032,7.6332,131.02,131.0,9.89477675]
[1742766724533,7.6332,131.02,130.99,36.52531818]
[1742766724740,7.6337,131.01,130.99,36.52531818]
[1742766725239,7.6333,131.02,130.99,44.16001818]
[1742766727540,7.6333,131.02,131.0,9.89477675]
[1742766728343,7.6333,131.02,130.99,44.16001818]
[1742766728742,7.6333,131.02,131.0,9.89477675]
[1742766729647,7.6333,131.02,130.99,44.16001818]
[1742766734947,7.6327,131.03,131.0,17.52887675]
[1742766735445,7.6327,131.03,131.0,9.89477675]
[1742766736946,7.6331,131.02,131.0,9.89477675]
[1742766744051,7.6331,131.02,131.0,17.52877675]
[1742766746754,7.6331,131.02,131.0,9.89477675]
[1742766746952,7.6331,131.02,130.99,44.15971818]
[1742766748556,7.6331,131.02,131.0,9.89477675]
[1742766750550,7.6331,131.02,131.0,17.52877675]
[1742766750855,7.6327,131.03,131.0,17.52877675]
[1742766753554,7.6331,131.02,131.0,17.52877675]
[1742766754660,7.6331,131.02,131.0,9.89477675]
[1742766759560,7.6331,131.02,131.0,17.52887675]
[1742766763165,17.52697675,131.04,131.01,17.52837675]
[1742766763466,7.6322,131.04,131.02,26.54]
[1742766767866,7.6324,131.03,131.02,26.54]
[1742766768072,9.89477675,131.03,130.94,263.28]
[1742766768367,7.6357,130.98,130.95,44.07157675]
[1742766768562,9.89477675,130.98,130.94,273.17477675]
[1742766768967,4.1993,130.97,130.94,273.17477675]
[1742766769370,4.25178601,130.97,130.94,273.22715715]
[1742766769667,11.88798601,130.97,130.94,280.86445715]
[1742766772766,9.77318601,130.97,130.94,280.86445715]
[1742766774170,9.77318601,130.97,130.95,9.89477675]
[1742766774372,7.6365,130.96,130.95,9.89477675]